[Event "Late-Titled-Tuesday-Blitz-June-04-2024"]
[Site "Chess.com"]
[Date "2024.06.04"]
[Round "6"]
[White "ahkashefi2800"]
[Black "TheoSlade"]
[Result "0-1"]
[WhiteElo "2562"]
[BlackElo "2469"]
[TimeControl "180+1"]
[EndTime "15:05:57 PDT"]
[Termination "TheoSlade won on time"]

1. d4 {[%clk 0:02:59.5]} 1... d5 {[%clk 0:02:59.6]} 2. c4 {[%clk 0:02:59]} 2...
e6 {[%clk 0:03:00.1]} 3. cxd5 {[%clk 0:02:59]} 3... exd5 {[%clk 0:02:59.8]} 4.
Nc3 {[%clk 0:02:59.5]} 4... c6 {[%clk 0:02:59.8]} 5. Qc2 {[%clk 0:02:57.9]} 5...
Nf6 {[%clk 0:02:57.6]} 6. Bg5 {[%clk 0:02:57.3]} 6... Be7 {[%clk 0:02:52.4]} 7.
e3 {[%clk 0:02:56.9]} 7... O-O {[%clk 0:02:44.1]} 8. Bd3 {[%clk 0:02:56.1]} 8...
Nbd7 {[%clk 0:02:44.4]} 9. Nge2 {[%clk 0:02:54.6]} 9... h6 {[%clk 0:02:43]} 10.
Bf4 {[%clk 0:02:54.4]} 10... Nh5 {[%clk 0:02:37.9]} 11. O-O {[%clk 0:02:54.4]}
11... Nxf4 {[%clk 0:02:37.2]} 12. Nxf4 {[%clk 0:02:53]} 12... Nf6 {[%clk
0:02:36.9]} 13. a3 {[%clk 0:02:52.1]} 13... Bd6 {[%clk 0:02:34.9]} 14. Rfe1
{[%clk 0:02:29.7]} 14... Re8 {[%clk 0:02:30.1]} 15. b4 {[%clk 0:02:28.5]} 15...
Qc7 {[%clk 0:02:25.2]} 16. g3 {[%clk 0:02:25.6]} 16... a6 {[%clk 0:02:17.4]} 17.
Rac1 {[%clk 0:02:25.2]} 17... Bg4 {[%clk 0:02:10.1]} 18. Ncxd5 {[%clk
0:02:19.1]} 18... Nxd5 {[%clk 0:01:47.5]} 19. Nxd5 {[%clk 0:02:19.2]} 19... Qd8
{[%clk 0:01:43.3]} 20. Nc3 {[%clk 0:02:17.5]} 20... Qd7 {[%clk 0:01:37.4]} 21.
Na4 {[%clk 0:02:12.7]} 21... Rad8 {[%clk 0:01:32.5]} 22. Nc5 {[%clk 0:02:10.2]}
22... Qc8 {[%clk 0:01:25.4]} 23. a4 {[%clk 0:02:06.9]} 23... h5 {[%clk
0:01:25.7]} 24. a5 {[%clk 0:02:04]} 24... h4 {[%clk 0:01:24.8]} 25. Be2 {[%clk
0:01:59.5]} 25... Bxe2 {[%clk 0:01:17.1]} 26. Qxe2 {[%clk 0:01:57.4]} 26... Bb8
{[%clk 0:01:15.4]} 27. Qf3 {[%clk 0:01:55.4]} 27... Rd5 {[%clk 0:01:11.9]} 28.
Nd3 {[%clk 0:01:53.5]} 28... Qh3 {[%clk 0:01:00.2]} 29. Qg2 {[%clk 0:01:31.7]}
29... Qg4 {[%clk 0:00:59.7]} 30. Nf4 {[%clk 0:01:22.4]} 30... Bxf4 {[%clk
0:00:58.5]} 31. gxf4 {[%clk 0:01:21.8]} 31... Qd7 {[%clk 0:00:53]} 32. Kh1
{[%clk 0:01:04.5]} 32... Rd6 {[%clk 0:00:47.2]} 33. Rc5 {[%clk 0:01:02.7]} 33...
Rg6 {[%clk 0:00:40.1]} 34. Rg5 {[%clk 0:00:44.7]} 34... Rxg5 {[%clk 0:00:39]}
35. Qxg5 {[%clk 0:00:43.1]} 35... h3 {[%clk 0:00:39.4]} 36. Rg1 {[%clk
0:00:40.9]} 36... f6 {[%clk 0:00:33]} 37. Qh5 {[%clk 0:00:39.2]} 37... Qe6
{[%clk 0:00:29.4]} 38. Qf3 {[%clk 0:00:33.9]} 38... Qd6 {[%clk 0:00:22]} 39.
Qxh3 {[%clk 0:00:23.6]} 39... Qxb4 {[%clk 0:00:20.3]} 0-1

[Event "Late-Titled-Tuesday-Blitz-June-04-2024"]
[Site "Chess.com"]
[Date "2024.06.04"]
[Round "6"]
[White "teresin05"]
[Black "Darkbluelord"]
[Result "1-0"]
[WhiteElo "2322"]
[BlackElo "2127"]
[TimeControl "180+1"]
[EndTime "15:05:57 PDT"]
[Termination "teresin05 won by resignation"]

1. e4 {[%clk 0:02:47.1]} 1... c5 {[%clk 0:02:59.7]} 2. Nf3 {[%clk 0:02:46.5]}
2... d6 {[%clk 0:02:59.6]} 3. d4 {[%clk 0:02:46.2]} 3... cxd4 {[%clk 0:03:00.5]}
4. Nxd4 {[%clk 0:02:46.9]} 4... Nf6 {[%clk 0:03:00.9]} 5. f3 {[%clk 0:02:47.5]}
5... g6 {[%clk 0:03:01.4]} 6. c4 {[%clk 0:02:48]} 6... Bg7 {[%clk 0:02:59.6]} 7.
Nc3 {[%clk 0:02:47.4]} 7... O-O {[%clk 0:03:00.5]} 8. Be3 {[%clk 0:02:47.6]}
8... Nc6 {[%clk 0:03:00.9]} 9. Qd2 {[%clk 0:02:48]} 9... Qb6 {[%clk 0:03:00.9]}
10. Ne6 {[%clk 0:02:36.5]} 10... Qa5 {[%clk 0:03:00.9]} 11. Nxf8 {[%clk
0:02:33.5]} 11... Kxf8 {[%clk 0:03:01]} 12. Rc1 {[%clk 0:02:28.8]} 12... Be6
{[%clk 0:03:01]} 13. Be2 {[%clk 0:02:12.4]} 13... Rc8 {[%clk 0:03:01]} 14. O-O
{[%clk 0:02:10.4]} 14... h5 {[%clk 0:03:01.6]} 15. Rfd1 {[%clk 0:02:03.5]} 15...
h4 {[%clk 0:02:59.7]} 16. Nd5 {[%clk 0:01:50.5]} 16... Qd8 {[%clk 0:02:31.8]}
17. h3 {[%clk 0:01:42.5]} 17... Kg8 {[%clk 0:02:27.8]} 18. Bg5 {[%clk 0:01:40]}
18... Nh7 {[%clk 0:02:23.6]} 19. Bxh4 {[%clk 0:01:25.6]} 19... Bxd5 {[%clk
0:02:23.7]} 20. cxd5 {[%clk 0:01:23.6]} 20... Ne5 {[%clk 0:02:24.6]} 21. Bf2
{[%clk 0:01:20.9]} 21... b6 {[%clk 0:02:23.9]} 22. Bd4 {[%clk 0:01:19.5]} 22...
Rxc1 {[%clk 0:02:20.8]} 23. Rxc1 {[%clk 0:01:18.7]} 23... Nf6 {[%clk 0:02:20.2]}
24. Ba6 {[%clk 0:01:17.1]} 24... Kh7 {[%clk 0:02:19.4]} 25. Bxe5 {[%clk
0:01:07.4]} 25... dxe5 {[%clk 0:02:17.8]} 26. Qc3 {[%clk 0:01:05.6]} 26... Qd6
{[%clk 0:02:01.7]} 27. Qc7 {[%clk 0:00:59.4]} 27... Qb4 {[%clk 0:02:01.1]} 28.
Qxe5 {[%clk 0:00:54.7]} 28... Nh5 {[%clk 0:01:33.6]} 29. Qc7 {[%clk 0:00:37.8]}
29... Bd4+ {[%clk 0:01:28.6]} 30. Kh1 {[%clk 0:00:32.7]} 30... Qxb2 {[%clk
0:00:51]} 31. Qc2 {[%clk 0:00:22.6]} 31... Qb4 {[%clk 0:00:40.6]} 32. g4 {[%clk
0:00:09.4]} 32... Nf4 {[%clk 0:00:35.7]} 33. Bf1 {[%clk 0:00:09.2]} 33... Qd6
{[%clk 0:00:32]} 34. Qd2 {[%clk 0:00:07.7]} 34... g5 {[%clk 0:00:31.4]} 35. Qxd4
{[%clk 0:00:07.3]} 35... Qh6 {[%clk 0:00:30.7]} 36. Rc6 {[%clk 0:00:06.8]} 36...
e6 {[%clk 0:00:28.6]} 37. Kh2 {[%clk 0:00:06.3]} 37... Qh4 {[%clk 0:00:27.3]}
38. dxe6 {[%clk 0:00:06.1]} 38... Qe1 {[%clk 0:00:27]} 39. Qg1 {[%clk
0:00:03.8]} 39... Qd2+ {[%clk 0:00:25.4]} 40. Bg2 {[%clk 0:00:04]} 40... Ne2
{[%clk 0:00:22.8]} 41. Qf2 {[%clk 0:00:03.4]} 41... Qf4+ {[%clk 0:00:22.7]} 42.
Kh1 {[%clk 0:00:03]} 42... Ng3+ {[%clk 0:00:20]} 43. Kg1 {[%clk 0:00:03.5]}
43... Qc1+ {[%clk 0:00:18.8]} 44. Rxc1 {[%clk 0:00:02.8]} 1-0

[Event "Late-Titled-Tuesday-Blitz-June-04-2024"]
[Site "Chess.com"]
[Date "2024.06.04"]
[Round "6"]
[White "Hirna2005"]
[Black "Dexter_Dyke"]
[Result "1-0"]
[WhiteElo "2339"]
[BlackElo "2458"]
[TimeControl "180+1"]
[EndTime "15:05:59 PDT"]
[Termination "Hirna2005 won on time"]

1. e4 {[%clk 0:03:00.9]} 1... c5 {[%clk 0:03:00.2]} 2. c3 {[%clk 0:03:00.2]}
2... d5 {[%clk 0:02:59.5]} 3. exd5 {[%clk 0:02:59.8]} 3... Qxd5 {[%clk 0:03:00]}
4. Nf3 {[%clk 0:02:59.4]} 4... Nc6 {[%clk 0:02:58.1]} 5. Na3 {[%clk 0:02:57.2]}
5... Bg4 {[%clk 0:02:58]} 6. Be2 {[%clk 0:02:51.8]} 6... e6 {[%clk 0:02:54.8]}
7. O-O {[%clk 0:02:51.3]} 7... Nf6 {[%clk 0:02:55.2]} 8. Re1 {[%clk 0:02:49.7]}
8... Be7 {[%clk 0:02:53.5]} 9. h3 {[%clk 0:02:47.5]} 9... Bh5 {[%clk 0:02:53.4]}
10. Qb3 {[%clk 0:02:43.2]} 10... Qd7 {[%clk 0:02:50]} 11. Nc4 {[%clk 0:02:39.5]}
11... Bxf3 {[%clk 0:02:46.4]} 12. Bxf3 {[%clk 0:02:38.9]} 12... O-O {[%clk
0:02:47.1]} 13. Ne5 {[%clk 0:02:27.7]} 13... Nxe5 {[%clk 0:02:44.9]} 14. Rxe5
{[%clk 0:02:27.7]} 14... Rab8 {[%clk 0:02:45.5]} 15. a4 {[%clk 0:02:15.7]} 15...
Rfd8 {[%clk 0:02:41.8]} 16. Qc2 {[%clk 0:02:08.7]} 16... Bd6 {[%clk 0:02:35.6]}
17. Re1 {[%clk 0:02:07.7]} 17... e5 {[%clk 0:02:36]} 18. d3 {[%clk 0:02:07.6]}
18... Bc7 {[%clk 0:02:28.7]} 19. Be4 {[%clk 0:01:56.6]} 19... Nxe4 {[%clk
0:02:19.4]} 20. dxe4 {[%clk 0:01:56.4]} 20... Qd3 {[%clk 0:02:18.1]} 21. Qxd3
{[%clk 0:01:55.1]} 21... Rxd3 {[%clk 0:02:18.7]} 22. Be3 {[%clk 0:01:55.3]}
22... b6 {[%clk 0:02:13.9]} 23. Red1 {[%clk 0:01:50]} 23... Rbd8 {[%clk
0:02:13.7]} 24. Rxd3 {[%clk 0:01:49.8]} 24... Rxd3 {[%clk 0:02:14.6]} 25. Kf1
{[%clk 0:01:49.9]} 25... Kf8 {[%clk 0:02:11.1]} 26. Ke2 {[%clk 0:01:49.8]} 26...
Rd7 {[%clk 0:02:10.5]} 27. a5 {[%clk 0:01:47.6]} 27... Ke7 {[%clk 0:02:07.4]}
28. axb6 {[%clk 0:01:46.2]} 28... Bxb6 {[%clk 0:02:07.7]} 29. Rd1 {[%clk
0:01:40.8]} 29... Rxd1 {[%clk 0:02:06.2]} 30. Kxd1 {[%clk 0:01:40.9]} 30... g6
{[%clk 0:01:59.8]} 31. Ke2 {[%clk 0:01:39]} 31... f5 {[%clk 0:01:59.6]} 32. Kd3
{[%clk 0:01:36.5]} 32... Kd6 {[%clk 0:01:59.9]} 33. exf5 {[%clk 0:01:16.2]}
33... gxf5 {[%clk 0:01:59.8]} 34. Kc4 {[%clk 0:01:16.4]} 34... Kc6 {[%clk
0:01:59.7]} 35. f3 {[%clk 0:01:14.5]} 35... h5 {[%clk 0:01:55.8]} 36. Bf2 {[%clk
0:01:14.5]} 36... a6 {[%clk 0:01:53.1]} 37. b4 {[%clk 0:00:53.9]} 37... cxb4
{[%clk 0:01:50.5]} 38. Bxb6 {[%clk 0:00:53]} 38... Kxb6 {[%clk 0:01:42.2]} 39.
cxb4 {[%clk 0:00:53.1]} 39... e4 {[%clk 0:01:29.3]} 40. fxe4 {[%clk 0:00:52.5]}
40... fxe4 {[%clk 0:01:29.9]} 41. g4 {[%clk 0:00:50.7]} 41... hxg4 {[%clk
0:01:26.8]} 42. hxg4 {[%clk 0:00:50.8]} 42... e3 {[%clk 0:01:27.4]} 43. Kd3
{[%clk 0:00:51]} 43... Kb5 {[%clk 0:01:28]} 44. g5 {[%clk 0:00:51.3]} 44... Kxb4
{[%clk 0:01:28.6]} 45. g6 {[%clk 0:00:51.7]} 45... a5 {[%clk 0:01:29.3]} 46. g7
{[%clk 0:00:51.9]} 46... a4 {[%clk 0:01:30.1]} 47. g8=Q {[%clk 0:00:52.2]} 47...
a3 {[%clk 0:01:30.1]} 48. Qc4+ {[%clk 0:00:50.5]} 48... Ka5 {[%clk 0:01:29.9]}
49. Qb3 {[%clk 0:00:49.8]} 49... a2 {[%clk 0:01:29]} 50. Qxa2+ {[%clk
0:00:49.4]} 50... Kb4 {[%clk 0:01:29.9]} 51. Kxe3 {[%clk 0:00:49.6]} 51... Kb5
{[%clk 0:00:10.4]} 52. Kd4 {[%clk 0:00:47.8]} 52... Kc6 {[%clk 0:00:11.3]} 53.
Qa6+ {[%clk 0:00:47]} 53... Kd7 {[%clk 0:00:11.6]} 54. Ke5 {[%clk 0:00:46.5]}
54... Ke7 {[%clk 0:00:12.5]} 55. Qb7+ {[%clk 0:00:46]} 55... Kf8 {[%clk
0:00:12.3]} 56. Kf6 {[%clk 0:00:45.9]} 1-0

[Event "Late-Titled-Tuesday-Blitz-June-04-2024"]
[Site "Chess.com"]
[Date "2024.06.04"]
[Round "6"]
[White "Mariia89"]
[Black "Zampronha1971"]
[Result "0-1"]
[WhiteElo "2235"]
[BlackElo "2409"]
[TimeControl "180+1"]
[EndTime "15:06:04 PDT"]
[Termination "Zampronha1971 won by checkmate"]

1. d4 {[%clk 0:02:59.6]} 1... Nf6 {[%clk 0:02:59.5]} 2. Nf3 {[%clk 0:03:00.2]}
2... e6 {[%clk 0:02:58.7]} 3. Bg5 {[%clk 0:03:00.7]} 3... c5 {[%clk 0:02:57.7]}
4. e3 {[%clk 0:03:01.2]} 4... Qb6 {[%clk 0:02:57.2]} 5. Qc1 {[%clk 0:03:01]}
5... Ne4 {[%clk 0:02:55.6]} 6. Bf4 {[%clk 0:02:59]} 6... d5 {[%clk 0:02:54.7]}
7. c3 {[%clk 0:02:58.9]} 7... Nc6 {[%clk 0:02:53.6]} 8. Bd3 {[%clk 0:02:45.3]}
8... Be7 {[%clk 0:02:49.4]} 9. O-O {[%clk 0:02:44]} 9... O-O {[%clk 0:02:48.5]}
10. Nbd2 {[%clk 0:02:44.1]} 10... f5 {[%clk 0:02:48.4]} 11. Ne5 {[%clk
0:02:43.4]} 11... Nxe5 {[%clk 0:02:47]} 12. Bxe5 {[%clk 0:02:42.7]} 12... Bd7
{[%clk 0:02:46.6]} 13. f3 {[%clk 0:02:41.5]} 13... Nxd2 {[%clk 0:02:46.1]} 14.
Qxd2 {[%clk 0:02:42.4]} 14... Rac8 {[%clk 0:02:45.2]} 15. Kh1 {[%clk 0:02:39.8]}
15... Bb5 {[%clk 0:02:43.8]} 16. Bxb5 {[%clk 0:02:26]} 16... Qxb5 {[%clk
0:02:43.4]} 17. g4 {[%clk 0:01:56.9]} 17... fxg4 {[%clk 0:02:31.7]} 18. f4
{[%clk 0:01:55]} 18... Qe8 {[%clk 0:02:26.1]} 19. Qg2 {[%clk 0:01:50.8]} 19...
Qh5 {[%clk 0:01:23.9]} 20. Rg1 {[%clk 0:01:46.9]} 20... cxd4 {[%clk 0:01:22.1]}
21. exd4 {[%clk 0:01:46.3]} 21... Bf6 {[%clk 0:01:22.1]} 22. Bd6 {[%clk
0:01:15.2]} 22... Rfd8 {[%clk 0:01:20.6]} 23. Be5 {[%clk 0:01:14.5]} 23... Bxe5
{[%clk 0:01:20.3]} 24. fxe5 {[%clk 0:01:14.4]} 24... b5 {[%clk 0:01:12.2]} 25.
Qxg4 {[%clk 0:01:10.5]} 25... Qxg4 {[%clk 0:01:13]} 26. Rxg4 {[%clk 0:01:11.4]}
26... b4 {[%clk 0:01:12]} 27. Rag1 {[%clk 0:01:11.8]} 27... g6 {[%clk
0:01:11.2]} 28. cxb4 {[%clk 0:00:39.9]} 28... Rc2 {[%clk 0:01:09.9]} 29. R1g2
{[%clk 0:00:35.7]} 29... Rdc8 {[%clk 0:01:10.2]} 30. Rxc2 {[%clk 0:00:35.9]}
30... Rxc2 {[%clk 0:01:09.7]} 31. Rg2 {[%clk 0:00:26.6]} 31... Rc1+ {[%clk
0:01:09.6]} 32. Rg1 {[%clk 0:00:26.8]} 32... Rc4 {[%clk 0:01:10.5]} 33. Rd1
{[%clk 0:00:22.2]} 33... Rxb4 {[%clk 0:01:08.6]} 34. b3 {[%clk 0:00:22.3]} 34...
a5 {[%clk 0:01:09]} 35. Kg2 {[%clk 0:00:20.2]} 35... a4 {[%clk 0:01:09.4]} 36.
Rd3 {[%clk 0:00:20.8]} 36... axb3 {[%clk 0:01:08.2]} 37. axb3 {[%clk 0:00:21.7]}
37... Kg7 {[%clk 0:01:05.2]} 38. Kf3 {[%clk 0:00:21.9]} 38... g5 {[%clk
0:01:05.8]} 39. Kg4 {[%clk 0:00:18.9]} 39... Kg6 {[%clk 0:01:06]} 40. Kg3 {[%clk
0:00:16.2]} 40... h5 {[%clk 0:01:06.6]} 41. h4 {[%clk 0:00:15.7]} 41... gxh4+
{[%clk 0:01:00.7]} 42. Kxh4 {[%clk 0:00:15.8]} 42... Kf5 {[%clk 0:01:01.6]} 43.
Kxh5 {[%clk 0:00:09.6]} 43... Ke4 {[%clk 0:01:01.8]} 44. Rg3 {[%clk 0:00:10]}
44... Kxd4 {[%clk 0:00:51]} 45. Rg4+ {[%clk 0:00:06.2]} 45... Kc3 {[%clk
0:00:47.8]} 46. Rxb4 {[%clk 0:00:07.1]} 46... Kxb4 {[%clk 0:00:47.8]} 47. Kg6
{[%clk 0:00:06.9]} 47... d4 {[%clk 0:00:47.7]} 48. Kf6 {[%clk 0:00:07.8]} 48...
d3 {[%clk 0:00:48.4]} 49. Kxe6 {[%clk 0:00:08.7]} 49... d2 {[%clk 0:00:49.3]}
50. Kf7 {[%clk 0:00:08.2]} 50... d1=Q {[%clk 0:00:50.2]} 51. e6 {[%clk
0:00:09.1]} 51... Qf3+ {[%clk 0:00:49.3]} 52. Ke8 {[%clk 0:00:09.2]} 52... Kc5
{[%clk 0:00:47.5]} 53. e7 {[%clk 0:00:09.4]} 53... Kd6 {[%clk 0:00:46.4]} 54.
Kd8 {[%clk 0:00:09.1]} 54... Qa8# {[%clk 0:00:44.2]} 0-1

[Event "Late-Titled-Tuesday-Blitz-June-04-2024"]
[Site "Chess.com"]
[Date "2024.06.04"]
[Round "6"]
[White "merinasian"]
[Black "norwaytoadog"]
[Result "1-0"]
[WhiteElo "2489"]
[BlackElo "2333"]
[TimeControl "180+1"]
[EndTime "15:06:05 PDT"]
[Termination "merinasian won on time"]

1. d4 {[%clk 0:02:55.6]} 1... d5 {[%clk 0:02:59.5]} 2. Nf3 {[%clk 0:02:55.4]}
2... Nf6 {[%clk 0:02:59.3]} 3. c4 {[%clk 0:02:54.7]} 3... e6 {[%clk 0:02:59.7]}
4. e3 {[%clk 0:02:54.6]} 4... c6 {[%clk 0:02:58.8]} 5. Nbd2 {[%clk 0:02:55.1]}
5... Be7 {[%clk 0:02:57.5]} 6. Bd3 {[%clk 0:02:55.5]} 6... O-O {[%clk
0:02:57.2]} 7. O-O {[%clk 0:02:35.5]} 7... c5 {[%clk 0:02:56.3]} 8. dxc5 {[%clk
0:02:32.2]} 8... Bxc5 {[%clk 0:02:52.4]} 9. a3 {[%clk 0:02:32.6]} 9... Nc6
{[%clk 0:02:50]} 10. b4 {[%clk 0:02:26.4]} 10... Bd6 {[%clk 0:02:46]} 11. Bb2
{[%clk 0:02:26.6]} 11... a6 {[%clk 0:02:40.5]} 12. Qe2 {[%clk 0:02:18.2]} 12...
Qe7 {[%clk 0:02:38.3]} 13. Rfd1 {[%clk 0:02:14.6]} 13... b6 {[%clk 0:02:28.4]}
14. e4 {[%clk 0:02:07.7]} 14... Nh5 {[%clk 0:01:05.9]} 15. exd5 {[%clk
0:01:34.4]} 15... exd5 {[%clk 0:00:54.4]} 16. cxd5 {[%clk 0:01:26.7]} 16... Nf4
{[%clk 0:00:37.8]} 17. Qxe7 {[%clk 0:01:23.7]} 17... Nxe7 {[%clk 0:00:38.7]} 18.
Nc4 {[%clk 0:01:16.8]} 18... Nxd3 {[%clk 0:00:34.2]} 19. Rxd3 {[%clk 0:01:15.2]}
19... Nf5 {[%clk 0:00:29.6]} 20. Nxd6 {[%clk 0:00:49.1]} 20... Nxd6 {[%clk
0:00:29.3]} 21. Rc1 {[%clk 0:00:41.8]} 21... Bf5 {[%clk 0:00:26.7]} 22. Rd2
{[%clk 0:00:41.8]} 22... b5 {[%clk 0:00:23.8]} 23. Nd4 {[%clk 0:00:39.6]} 23...
Bd7 {[%clk 0:00:20.9]} 24. Nc6 {[%clk 0:00:38.7]} 24... Nc4 {[%clk 0:00:19.4]}
25. Re2 {[%clk 0:00:38.5]} 25... Rfe8 {[%clk 0:00:18.4]} 26. Rxe8+ {[%clk
0:00:32]} 26... Rxe8 {[%clk 0:00:17.7]} 27. Bd4 {[%clk 0:00:30.7]} 27... Bxc6
{[%clk 0:00:14.7]} 28. dxc6 {[%clk 0:00:30.5]} 28... Rc8 {[%clk 0:00:15.2]} 29.
Re1 {[%clk 0:00:29.7]} 29... f6 {[%clk 0:00:08.1]} 30. Re7 {[%clk 0:00:25.9]}
30... Rxc6 {[%clk 0:00:07.6]} 31. g4 {[%clk 0:00:25.5]} 31... Kf8 {[%clk
0:00:06.8]} 32. Ra7 {[%clk 0:00:24.6]} 32... Re6 {[%clk 0:00:05]} 33. g5 {[%clk
0:00:23.8]} 33... Re4 {[%clk 0:00:03.5]} 34. Bc5+ {[%clk 0:00:22.3]} 34... Kg8
{[%clk 0:00:03.7]} 35. gxf6 {[%clk 0:00:21.6]} 35... gxf6 {[%clk 0:00:03.6]} 36.
Rxa6 {[%clk 0:00:21.9]} 36... Kf7 {[%clk 0:00:03]} 37. Ra7+ {[%clk 0:00:21]}
37... Kg6 {[%clk 0:00:03.5]} 38. Kg2 {[%clk 0:00:20.5]} 38... h5 {[%clk
0:00:03]} 39. Ra8 {[%clk 0:00:18.6]} 39... Kf5 {[%clk 0:00:02.8]} 40. Rb8 {[%clk
0:00:18.5]} 40... h4 {[%clk 0:00:02.1]} 41. Rxb5 {[%clk 0:00:18]} 41... Kf4
{[%clk 0:00:01.5]} 42. Rb8 {[%clk 0:00:15.7]} 42... f5 {[%clk 0:00:01.2]} 43.
Rh8 {[%clk 0:00:13.4]} 1-0

[Event "Late-Titled-Tuesday-Blitz-June-04-2024"]
[Site "Chess.com"]
[Date "2024.06.04"]
[Round "6"]
[White "ZverevLev"]
[Black "Abund"]
[Result "0-1"]
[WhiteElo "2654"]
[BlackElo "2811"]
[TimeControl "180+1"]
[EndTime "15:06:07 PDT"]
[Termination "Abund won on time"]

1. e4 {[%clk 0:03:00.9]} 1... c6 {[%clk 0:02:59.8]} 2. d4 {[%clk 0:03:00.3]}
2... d5 {[%clk 0:03:00.7]} 3. e5 {[%clk 0:03:00.4]} 3... c5 {[%clk 0:03:01.2]}
4. dxc5 {[%clk 0:02:57.5]} 4... e6 {[%clk 0:03:01.8]} 5. Nf3 {[%clk 0:02:55.9]}
5... Bxc5 {[%clk 0:02:58.6]} 6. Bd3 {[%clk 0:02:53.8]} 6... f6 {[%clk
0:02:56.5]} 7. O-O {[%clk 0:02:52.9]} 7... Nc6 {[%clk 0:02:56.7]} 8. Re1 {[%clk
0:02:49.3]} 8... fxe5 {[%clk 0:02:40.8]} 9. Nxe5 {[%clk 0:02:35.6]} 9... Nxe5
{[%clk 0:02:41]} 10. Rxe5 {[%clk 0:02:36.4]} 10... Bxf2+ {[%clk 0:02:35.8]} 11.
Kh1 {[%clk 0:02:36.6]} 11... Nf6 {[%clk 0:02:33.1]} 12. Bb5+ {[%clk 0:02:35.1]}
12... Kf7 {[%clk 0:02:27.5]} 13. Bg5 {[%clk 0:02:34]} 13... Rf8 {[%clk
0:02:12.4]} 14. Nc3 {[%clk 0:02:18.3]} 14... Kg8 {[%clk 0:02:09.1]} 15. Qd2
{[%clk 0:02:17.1]} 15... Qb6 {[%clk 0:02:00.6]} 16. Bxf6 {[%clk 0:02:04.4]}
16... Rxf6 {[%clk 0:01:47.5]} 17. Nxd5 {[%clk 0:01:39.2]} 17... exd5 {[%clk
0:00:43]} 18. Re8+ {[%clk 0:01:38.1]} 18... Kf7 {[%clk 0:00:32.3]} 19. Qxd5+
{[%clk 0:01:34.9]} 19... Kg6 {[%clk 0:00:28.9]} 20. Be2 {[%clk 0:01:09.2]} 20...
Qc5 {[%clk 0:00:23.8]} 21. Qg8 {[%clk 0:00:40.1]} 21... Kh6 {[%clk 0:00:14.8]}
22. Bd3 {[%clk 0:00:25.5]} 22... g6 {[%clk 0:00:14.8]} 23. Qh8 {[%clk 0:00:17]}
23... Bd4 {[%clk 0:00:14.7]} 24. Qg8 {[%clk 0:00:12.8]} 24... Be6 {[%clk
0:00:14.8]} 25. Qxe6 {[%clk 0:00:05.6]} 25... Rxe6 {[%clk 0:00:14.2]} 26. Rxe6
{[%clk 0:00:06.5]} 26... Bxb2 {[%clk 0:00:13.3]} 27. Rf1 {[%clk 0:00:05.5]}
27... Rf8 {[%clk 0:00:13.1]} 28. Rb1 {[%clk 0:00:04.6]} 28... Qa3 {[%clk
0:00:11.2]} 29. Bc4 {[%clk 0:00:02.3]} 29... b6 {[%clk 0:00:09.2]} 30. h3 {[%clk
0:00:02.4]} 30... Bd4 {[%clk 0:00:09.3]} 31. Bb3 {[%clk 0:00:02.2]} 31... Qc5
{[%clk 0:00:09]} 32. Rbe1 {[%clk 0:00:02.1]} 32... Qf5 {[%clk 0:00:08.8]} 33.
R6e4 {[%clk 0:00:01.7]} 33... Bc5 {[%clk 0:00:08.2]} 34. Bc4 {[%clk 0:00:01.8]}
34... Kg7 {[%clk 0:00:07.4]} 35. Bd3 {[%clk 0:00:02]} 35... Qf6 {[%clk
0:00:07.2]} 36. Re6 {[%clk 0:00:01.9]} 36... Qf4 {[%clk 0:00:07.7]} 37. R6e4
{[%clk 0:00:01.7]} 37... Qg3 {[%clk 0:00:07.7]} 38. R4e2 {[%clk 0:00:01.5]}
38... Bd6 {[%clk 0:00:07.6]} 0-1

[Event "Late-Titled-Tuesday-Blitz-June-04-2024"]
[Site "Chess.com"]
[Date "2024.06.04"]
[Round "6"]
[White "meme0105"]
[Black "Arteler"]
[Result "1-0"]
[WhiteElo "1947"]
[BlackElo "2209"]
[TimeControl "180+1"]
[EndTime "15:06:15 PDT"]
[Termination "meme0105 won on time"]

1. e4 {[%clk 0:03:00.9]} 1... e6 {[%clk 0:02:59.5]} 2. b3 {[%clk 0:02:59.6]}
2... d5 {[%clk 0:02:59.4]} 3. Bb2 {[%clk 0:02:59.4]} 3... dxe4 {[%clk
0:02:58.6]} 4. Nc3 {[%clk 0:02:59]} 4... Nf6 {[%clk 0:02:58.7]} 5. Qe2 {[%clk
0:02:58.4]} 5... Be7 {[%clk 0:02:53.7]} 6. O-O-O {[%clk 0:02:57.6]} 6... O-O
{[%clk 0:02:52]} 7. d4 {[%clk 0:02:56.4]} 7... exd3 {[%clk 0:02:51.3]} 8. Rxd3
{[%clk 0:02:57]} 8... Qe8 {[%clk 0:02:48.1]} 9. Rh3 {[%clk 0:02:54.1]} 9... Qc6
{[%clk 0:02:43.3]} 10. Nf3 {[%clk 0:02:39.8]} 10... Bd6 {[%clk 0:02:39.5]} 11.
Nd4 {[%clk 0:02:35.9]} 11... Qb6 {[%clk 0:02:35]} 12. Na4 {[%clk 0:02:23.9]}
12... Qa5 {[%clk 0:02:24.8]} 13. g4 {[%clk 0:01:53.1]} 13... Qg5+ {[%clk
0:02:17]} 14. Kb1 {[%clk 0:01:49]} 14... Nc6 {[%clk 0:02:04.8]} 15. Nxc6 {[%clk
0:01:38.1]} 15... bxc6 {[%clk 0:02:04.5]} 16. Rg1 {[%clk 0:01:32.3]} 16... Nd5
{[%clk 0:01:46.3]} 17. Rh5 {[%clk 0:01:28.7]} 17... Qg6 {[%clk 0:01:45.9]} 18.
Qf3 {[%clk 0:01:04.9]} 18... Nf4 {[%clk 0:01:22.6]} 19. Rh4 {[%clk 0:00:35]}
19... Be7 {[%clk 0:01:16]} 20. Qxf4 {[%clk 0:00:17.5]} 20... Bxh4 {[%clk
0:01:12.6]} 21. Bd3 {[%clk 0:00:18.1]} 21... Qg5 {[%clk 0:01:07.9]} 22. Qe4
{[%clk 0:00:18.7]} 22... f5 {[%clk 0:01:00.8]} 23. Qxc6 {[%clk 0:00:18.4]} 23...
Rb8 {[%clk 0:00:27.9]} 24. Nc5 {[%clk 0:00:17.9]} 24... Bxf2 {[%clk 0:00:23.3]}
25. Nxe6 {[%clk 0:00:16.2]} 25... Bxe6 {[%clk 0:00:20.2]} 26. Qxe6+ {[%clk
0:00:17.1]} 26... Kh8 {[%clk 0:00:18.7]} 27. Rf1 {[%clk 0:00:16]} 27... Rbe8
{[%clk 0:00:13.9]} 28. Qd7 {[%clk 0:00:10.3]} 28... Re1+ {[%clk 0:00:12.9]} 29.
Rxe1 {[%clk 0:00:07.2]} 29... Bxe1 {[%clk 0:00:13.8]} 30. Bc1 {[%clk 0:00:07.2]}
30... Qxg4 {[%clk 0:00:12.3]} 31. Qxc7 {[%clk 0:00:06.5]} 31... Bh4 {[%clk
0:00:07.5]} 32. Qc5 {[%clk 0:00:05.6]} 32... Re8 {[%clk 0:00:04.2]} 33. Bxf5
{[%clk 0:00:05.8]} 33... Qg5 {[%clk 0:00:03.7]} 34. Bxg5 {[%clk 0:00:05.2]}
34... Bxg5 {[%clk 0:00:03.5]} 35. Bd7 {[%clk 0:00:04.4]} 35... Re1+ {[%clk
0:00:03.2]} 36. Kb2 {[%clk 0:00:05]} 36... Bf6+ {[%clk 0:00:03.3]} 37. c3 {[%clk
0:00:05]} 37... Re2+ {[%clk 0:00:03.4]} 38. Ka3 {[%clk 0:00:05.9]} 38... Be7
{[%clk 0:00:02.6]} 39. b4 {[%clk 0:00:04.9]} 39... Bxc5 {[%clk 0:00:02.2]} 40.
bxc5 {[%clk 0:00:05.8]} 40... Rxh2 {[%clk 0:00:02.3]} 41. Kb4 {[%clk 0:00:06.2]}
41... Rh5 {[%clk 0:00:01.6]} 42. Bc6 {[%clk 0:00:06.5]} 42... Rh6 {[%clk
0:00:01.5]} 43. a4 {[%clk 0:00:07.1]} 1-0